bitfinex/quotes_ETHUSD_20240710
["timestamp","ask_amount","ask_price","bid_price","bid_amount"]
[1720623261784,2.2949,3110.6,3110.0,13.44358235]
[1720623261998,2.2949,3110.6,3110.0,10.22821235]
[1720623261999,0.5,3110.1,3110.0,10.22821235]
[1720623262205,0.5,3110.1,3110.0,14.46646358]
[1720623262709,0.5,3110.1,3110.0,17.46646358]
[1720623262915,0.5,3110.1,3110.0,13.66903123]
[1720623263097,0.48703853,3110.1,3110.0,17.43446123]
[1720623263267,7.46,3112.6,3111.4,3.2139]
[1720623263614,3.39253863,3112.4,3111.6,3.21368]
[1720623263769,0.5,3111.7,3111.6,6.4274]
[1720623264200,0.5,3111.7,3111.4,6.42782]
[1720623264405,0.5,3111.7,3111.1,2.868]
[1720623264579,0.5,3111.7,3111.3,3.21409]
[1720623264787,2.2791,3112.4,3111.2,3.0]
[1720623264996,2.2791,3112.4,3111.2,6.21418]
[1720623264997,0.5,3111.3,3111.2,6.21418]
[1720623267317,0.5,3111.3,3111.2,9.42837]
[1720623268414,0.5,3111.3,3111.2,6.21418]
[1720623268617,0.5,3111.3,3111.2,3.0]
[1720623268794,0.5,3111.3,3111.0,3.21433]
[1720623268994,2.61237718,3112.4,3111.1,3.0]
[1720623269182,0.5,3111.2,3111.1,3.0]
[1720623269384,0.5,3111.2,3111.0,3.21433]
[1720623269594,0.5,3111.2,3111.1,3.21429]
[1720623269794,0.5,3111.2,3111.0,3.21433]
[1720623270215,0.5,3111.2,3111.1,3.21429]
[1720623270787,0.5,3111.2,3111.1,3.857152]
[1720623270986,0.5,3111.2,3111.1,6.42858]
[1720623271427,0.5,3111.2,3111.1,9.42858]
[1720623273139,0.5,3111.2,3111.1,9.46231766]
[1720623273998,0.5,3111.2,3111.1,15.01950766]
[1720623274337,0.5,3111.2,3111.1,15.56950766]
[1720623274484,0.5,3111.2,3111.1,17.44790043]
[1720623276344,2.3236,3112.9,3112.3,3.21304]
[1720623276624,2.3236,3112.9,3112.4,0.0356577]
[1720623276625,1.11305952,3112.8,3112.4,0.0356577]
[1720623276783,1.11305952,3112.7,3112.4,0.0356577]
[1720623276987,1.11305952,3112.6,3112.4,0.0356577]
[1720623277201,2.3236,3112.9,3112.3,3.21304]
[1720623277412,0.5,3112.4,3112.3,3.21304]
[1720623281440,0.5,3112.4,3111.9,7.01286235]
[1720623281595,0.33361987,3113.2,3112.0,3.0]
[1720623281794,0.5,3112.1,3112.0,3.0]
[1720623282525,0.5,3112.1,3112.0,6.21336]
[1720623284635,0.5,3112.1,3112.0,3.0]
[1720623285040,2.8275,3112.1,3111.5,7.01286235]
[1720623285374,0.5,3111.6,3111.5,7.01286235]
[1720623285662,0.5,3111.6,3111.5,10.22674235]
[1720623286246,0.5,3111.6,3111.5,7.01286235]
[1720623287814,4.82726972,3111.6,3111.5,7.01286235]
[1720623288046,4.82726972,3111.6,3111.5,7.07334583]
[1720623288270,5.55383596,3111.6,3111.5,7.07334583]
[1720623288436,5.55382399,3111.6,3111.5,7.07334583]
[1720623288948,3.71378,3111.6,3111.5,7.07334583]
[1720623289126,5.55384597,3111.6,3111.5,7.07334583]
[1720623290561,5.55384597,3111.6,3111.5,0.06048348]
[1720623290722,5.55384597,3111.6,3110.9,10.22729235]
[1720623290930,1.84006597,3111.5,3111.0,0.06088422]
[1720623291128,3.21378,3111.6,3111.0,0.06088422]
[1720623291336,0.5,3111.1,3111.0,0.06088422]
[1720623291544,0.5,3111.1,3110.9,3.21448]
[1720623291726,0.5,3111.1,3111.0,0.06088422]
[1720623292221,0.5,3111.1,3111.0,3.27528422]
[1720623292946,0.5,3111.1,3111.0,3.92426364]
[1720623294872,0.5,3111.1,3111.0,3.9885445]
[1720623295040,0.5,3111.1,3111.0,10.2029445]
[1720623295757,0.5,3111.1,3111.0,10.13866364]
[1720623296827,0.5,3111.1,3111.0,0.06088422]
[1720623297267,0.5,3111.1,3110.6,3.21477]
[1720623297438,1.33111146,3111.6,3111.0,0.048011]
[1720623297439,2.4186,3111.4,3111.0,0.048011]
[1720623297638,2.4186,3111.4,3110.7,3.0]
[1720623297639,1.11352338,3111.3,3110.7,3.0]
[1720623297840,1.11352338,3111.2,3111.1,0.04794865]
[1720623298075,1.11352338,3111.2,3110.7,3.0]
[1720623298236,2.44463484,3111.3,3111.1,0.04794865]
[1720623298600,2.44463484,3111.3,3110.6,3.0]
[1720623298601,1.84022766,3111.2,3110.6,3.0]
[1720623298734,0.72670428,3111.1,3110.5,10.22777235]
[1720623298925,0.5,3110.7,3110.5,10.22777235]
[1720623299130,0.5,3110.7,3110.5,3.21491]
[1720623300343,0.5,3110.7,3110.1,5.24550612]
[1720623300562,1.33111146,3111.0,3110.0,10.35478358]
[1720623300563,1.33111146,3110.9,3110.0,7.01286235]
[1720623300874,0.5,3110.1,3110.0,7.01286235]
[1720623301082,0.5,3110.1,3110.0,10.22828235]
[1720623301276,0.5,3110.1,3110.0,13.44371235]
[1720623302948,0.5,3110.1,3110.0,13.49244461]
[1720623303336,0.5,3110.1,3110.0,16.70787461]
[1720623303533,0.5,3110.1,3110.0,21.66466207]
[1720623303750,0.5,3110.1,3110.0,23.97066207]
[1720623303949,0.5,3110.1,3110.0,24.52066207]
[1720623304592,0.5,3110.1,3110.0,20.72322972]
[1720623305848,0.5,3110.1,3110.0,17.50779972]
[1720623307304,0.5,3110.1,3110.0,9.47958226]
[1720623307456,0.5,3110.1,3110.0,6.26415226]
[1720623307968,0.5,3110.1,3110.0,9.47958226]
[1720623310783,0.5,3110.1,3110.0,3.04873226]
[1720623311120,0.5,3110.1,3110.0,9.47959226]
[1720623311318,0.5,3110.1,3110.0,10.71355149]
[1720623311523,0.5,3110.1,3110.0,16.25728149]
[1720623311825,0.5,3110.1,3110.0,20.02271149]
[1720623311993,1.33608181,3111.6,3111.1,3.21423]
[1720623312194,1.11352525,3111.5,3111.2,3.32204034]
[1720623312393,0.5,3111.3,3111.2,7.1255813]
[1720623312907,0.5,3111.3,3111.2,10.1255813]
[1720623313307,0.5,3111.3,3111.2,12.9855813]
[1720623313740,0.5,3111.3,3111.2,16.1997713]
[1720623314732,0.5,3111.3,3111.2,17.1547713]
[1720623317447,0.5,3111.3,3111.2,9.47195427]
[1720623319421,0.5,3111.3,3111.2,12.68614427]
[1720623319629,0.5,3111.3,3111.2,17.05114427]
[1720623320549,0.5,3111.3,3111.2,13.83695427]
[1720623320707,0.5,3111.3,3111.2,17.05114427]
[1720623320907,0.5,3111.3,3111.2,18.7562587]
[1720623321303,0.5,3111.3,3111.2,15.5420687]
[1720623321641,0.5,3111.3,3111.2,14.9412587]
[1720623324522,0.5,3111.3,3111.2,18.7562587]
[1720623325548,0.5,3111.3,3111.2,21.0823587]
[1720623325549,0.01126431,3111.3,3111.2,21.0823587]
[1720623326052,0.01126431,3111.3,3111.2,14.9920687]
[1720623326213,0.01126431,3111.3,3111.2,9.47195427]
[1720623328274,0.01126431,3111.3,3111.2,12.68614427]
[1720623328651,0.01126431,3111.3,3111.2,9.47195427]
[1720623328854,0.01126431,3111.3,3111.2,12.68614427]
[1720623329253,0.01126431,3111.3,3111.2,9.47195427]
[1720623329452,0.01126431,3111.3,3111.2,10.8006497]
[1720623329654,0.01126431,3111.3,3111.2,14.0148397]
[1720623330648,0.01126431,3111.3,3111.2,10.8006497]
[1720623330965,0.01126431,3111.3,3111.2,14.0148397]
[1720623331171,0.01126431,3111.3,3111.2,10.8006497]
[1720623332164,0.01126431,3111.3,3111.2,14.0148397]
[1720623333291,10.79724588,3113.5,3111.2,14.0148397]
[1720623333292,3.61611912,3113.1,3111.3,2.6974]
[1720623333487,2.2764,3113.1,3112.7,3.21255]
[1720623333658,1.33971912,3113.3,3112.9,3.21238]
[1720623333988,1.33971912,3113.3,3112.3,13.22588235]
[1720623333989,1.33971912,3113.6,3113.2,3.21203]
[1720623334281,1.84023596,3113.5,3113.2,3.21203]
[1720623334588,1.33971912,3113.6,3113.2,3.21203]
[1720623334786,1.11273938,3113.5,3113.3,3.21202]
[1720623335091,1.33971912,3113.6,3113.3,3.21202]
[1720623335266,1.33971912,3113.7,3113.3,3.21202]
[1720623335460,5.29686803,3113.9,3113.3,3.21202]
[1720623335685,1.84016157,3113.8,3113.3,3.21202]
[1720623335888,1.11267013,3113.7,3113.3,3.21202]
[1720623336053,1.11267013,3113.7,3113.0,7.01286235]
[1720623336384,3.17987976,3113.6,3113.0,7.01286235]
[1720623336689,3.17987976,3113.5,3113.0,7.01286235]
[1720623336872,1.84016064,3113.4,3113.0,7.01286235]
[1720623337073,2.2697,3113.2,3113.0,7.01286235]
[1720623337272,1.11294302,3113.1,3112.5,7.01286235]
[1720623337487,1.11294302,3113.0,3112.5,7.01286235]
[1720623337783,3.60941912,3113.5,3112.8,3.21247]
[1720623337985,1.11286854,3113.4,3112.8,3.21247]
[1720623338151,1.11286854,3113.3,3112.6,3.21266]
[1720623338355,2.45258766,3113.4,3112.6,3.21266]
[1720623338556,1.84055307,3113.3,3112.6,3.21266]
[1720623338857,1.11286854,3113.2,3112.8,3.21251]
[1720623339161,1.11286854,3113.1,3112.6,3.21265]
[1720623339501,3.60941912,3113.5,3112.7,3.21258]
[1720623339668,1.11288433,3113.4,3112.8,3.21249]
[1720623339991,1.11288433,3113.3,3112.8,3.21249]
[1720623340165,1.11288433,3113.4,3113.0,3.21231]
[1720623340495,1.33971912,3113.8,3113.0,3.21231]
[1720623340679,1.11281605,3113.7,3113.1,3.21214]
[1720623340867,1.11281605,3113.6,3113.0,3.21225]
[1720623341185,1.11281605,3113.5,3113.0,3.21225]
[1720623341386,1.33971912,3113.9,3113.2,3.21207]
[1720623341387,1.11281605,3113.4,3113.2,3.21207]
[1720623341601,2.3274,3114.0,3113.2,3.21207]
[1720623341602,1.11281605,3113.3,3113.2,3.21207]
[1720623341802,3.66711912,3114.0,3113.2,3.21207]
[1720623342085,1.84095401,3113.9,3113.2,6.42413]
[1720623342289,1.11276399,3113.8,3113.2,3.21206]
[1720623342584,1.11276399,3113.7,3113.0,6.42451]
[1720623342792,2.3274,3114.0,3113.1,3.21221]
[1720623342999,1.11282972,3113.6,3113.1,3.21221]
[1720623343172,1.11282972,3113.5,3113.1,3.21221]
[1720623343369,1.11282972,3113.4,3113.1,3.21221]
[1720623343571,1.11282972,3113.3,3113.1,3.21221]
[1720623343771,1.11282972,3113.2,3113.1,3.21221]
[1720623343967,2.44950632,3113.8,3113.1,3.21221]
[1720623344168,1.11282972,3113.7,3113.1,3.21221]
[1720623344367,1.11282972,3113.6,3112.6,7.01286235]
[1720623344573,1.11282972,3113.5,3112.8,3.21244]
[1720623344788,1.11282972,3113.8,3112.9,3.21241]
[1720623345100,1.11282972,3113.7,3112.9,3.21241]
[1720623345271,1.11282972,3113.6,3112.9,3.21241]
[1720623345608,1.11282972,3113.5,3112.9,3.21241]
[1720623345755,1.11282972,3113.4,3112.9,3.21241]
[1720623345959,3.6640766,3114.0,3112.7,6.21256]
[1720623345960,1.11282972,3113.3,3112.7,6.21256]
[1720623346262,1.11288895,3113.2,3112.6,7.01286235]
[1720623346482,1.11288895,3113.1,3112.6,7.01286235]
[1720623346657,1.11288895,3113.2,3112.6,7.01286235]
[1720623347107,1.11288895,3113.2,3112.5,3.21279]
[1720623348254,1.11288895,3113.2,3112.3,7.01286235]
[1720623348458,2.3788,3113.1,3112.3,7.01286235]
[1720623348660,1.84058834,3113.0,3112.3,7.01286235]
[1720623348856,2.3788,3112.8,3112.3,7.01286235]
[1720623349069,2.2689,3112.6,3110.9,3.21441]
[1720623349303,2.2689,3112.6,3111.1,3.21419]
[1720623349304,1.84061456,3112.5,3111.1,3.21419]
[1720623349517,1.33601359,3112.3,3110.9,3.21447]
[1720623349799,1.33601359,3112.3,3111.2,0.05298645]
[1720623349800,6.7520919,3112.2,3111.2,0.05298645]
[1720623350012,6.7520919,3112.2,3111.0,0.05312673]
[1720623350013,1.67001699,3112.0,3111.0,0.05312673]
[1720623350228,5.79227831,3111.9,3110.4,3.21495]
[1720623350452,3.51107831,3111.8,3111.1,0.04716141]
[1720623350729,1.84106132,3111.7,3111.2,0.04709907]
[1720623350928,1.84106132,3111.6,3110.5,3.2149]
[1720623351232,1.84102199,3111.5,3111.3,0.04703673]
[1720623351436,1.11338631,3111.4,3111.3,0.04703673]
[1720623351590,1.11338631,3111.4,3110.5,3.2149]
[1720623351591,1.11338631,3111.7,3110.5,3.2149]
[1720623351932,0.727637,3111.6,3110.6,0.05340733]
[1720623352230,1.11338631,3111.5,3110.6,0.05340733]
[1720623352620,1.11365743,3111.4,3110.6,0.05340733]
[1720623352790,3.39185743,3111.3,3110.6,0.05340733]
[1720623352994,1.84137804,3111.2,3109.6,3.21576]
[1720623353226,1.84137804,3111.1,3110.7,0.04741082]
[1720623353525,3.0,3111.2,3109.3,7.03112]
[1720623353526,3.94817776,3110.9,3109.3,3.21607]
[1720623353741,1.66914816,3110.6,3109.3,3.21607]
[1720623353922,1.84137804,3110.5,3109.3,3.21607]
[1720623354089,1.84137804,3110.4,3109.3,3.859313]
[1720623354300,2.3033,3110.2,3109.0,1.59860153]
[1720623354493,2.3033,3110.2,3108.7,3.21675]
[1720623354494,2.3033,3110.2,3108.7,3.21673]
[1720623354808,2.3033,3110.2,3109.1,3.21633]
[1720623354809,1.11416611,3110.1,3109.1,3.21633]
[1720623355010,2.3033,3110.2,3109.3,3.21615]
[1720623355922,2.3033,3110.2,3109.4,0.06431436]
[1720623356124,3.0,3111.2,3109.4,0.06431436]
[1720623356125,5.2826,3110.7,3109.4,0.06431436]
[1720623356325,1.84196764,3110.6,3109.4,0.06431436]
[1720623356511,3.0,3110.6,3109.4,0.06431436]
[1720623356710,5.2826,3110.7,3109.4,0.06431436]
[1720623356912,2.2826,3110.7,3109.4,0.06431436]
[1720623357116,2.2826,3111.2,3110.0,3.21541]
[1720623357428,2.2826,3111.2,3109.5,0.55]
[1720623357429,2.2826,3111.2,3109.6,0.06429941]
[1720623357655,0.72796801,3111.1,3109.7,0.55]
[1720623357802,0.72796801,3111.1,3109.6,3.21578]
[1720623358003,0.72796801,3111.1,3109.5,3.55]
[1720623358004,1.1139684,3111.0,3109.5,3.55]
[1720623358236,1.33409849,3111.1,3109.5,3.0]
[1720623358399,1.84197662,3111.0,3109.5,3.621599]
[1720623358605,1.84197662,3110.9,3109.5,3.621599]
[1720623358879,3.0,3110.9,3109.5,6.9018387]
[1720623359029,3.0,3110.9,3109.5,6.837529]
[1720623359229,3.0,3111.1,3109.5,6.837529]
[1720623359538,3.0,3111.1,3109.6,0.6837529]
[1720623359539,0.72799931,3111.0,3109.6,0.6837529]
[1720623360209,3.0,3111.1,3109.6,0.6837529]
[1720623360410,5.2826,3111.2,3109.6,0.6837529]
[1720623360656,0.72808535,3111.1,3109.6,3.8995529]
[1720623360953,3.0,3111.1,3109.6,0.7480625]
[1720623361102,3.0,3111.1,3109.7,3.76567]
[1720623361299,3.0,3111.1,3109.7,3.21567]
[1720623361505,2.2826,3111.2,3109.7,3.21567]
[1720623362258,2.2826,3111.2,3109.8,0.0643067]
[1720623362406,0.05587056,3111.1,3109.9,3.21547]
[1720623362602,0.05587056,3111.1,3109.5,10.68589]
[1720623363206,0.05587056,3111.1,3109.7,3.21573]
[1720623363442,0.05587056,3111.1,3109.9,3.21549]
[1720623363749,0.05587056,3111.1,3109.5,7.47]
[1720623363750,0.05587056,3111.1,3109.5,10.68589]
[1720623364407,0.05587056,3111.1,3109.7,3.21572]
[1720623364646,0.05587056,3111.1,3109.8,0.321572]
[1720623364936,2.2826,3111.2,3109.9,3.21547]
[1720623365378,2.2826,3111.2,3110.0,3.21542]
[1720623366169,2.2826,3111.2,3110.0,3.27972117]
[1720623366471,2.2826,3111.2,3110.2,3.21515]
[1720623366670,2.2826,3111.2,3110.3,0.376515]
[1720623366857,2.2826,3111.2,3109.9,3.21545]
[1720623368151,2.2826,3111.2,3110.0,3.21543]
[1720623368349,2.2826,3111.2,3109.8,3.537142]
[1720623368664,2.2826,3111.2,3109.9,9.43093]
[1720623368982,2.2826,3111.2,3109.7,3.21569]
[1720623369272,1.11401548,3111.1,3109.5,7.47]
[1720623369473,3.37894027,3111.0,3109.5,10.68593]
[1720623369676,3.0,3110.9,3109.5,10.68593]
[1720623369985,2.2649,3111.0,3109.5,10.68589]
[1720623370138,2.2649,3111.0,3109.6,1.068589]
[1720623370571,2.2649,3111.0,3109.5,7.47]
[1720623370967,2.2649,3111.0,3109.5,10.68594]
[1720623372155,1.11398833,3110.9,3109.5,10.68594]
[1720623372352,3.0,3110.9,3109.5,10.68594]
[1720623372676,2.2649,3111.0,3109.5,10.68594]
[1720623372868,1.11402945,3110.9,3109.5,12.076143]
[1720623373063,4.11402945,3110.9,3109.5,10.68594]
[1720623373270,3.39492903,3110.8,3109.5,7.47]
[1720623373468,3.39492903,3110.7,3109.5,7.47]
[1720623373682,4.11412903,3110.6,3109.5,7.47]
[1720623373916,1.11412903,3110.5,3109.5,7.47]
[1720623374079,1.11412903,3110.5,3109.2,7.47]
[1720623374280,1.11412903,3110.5,3109.2,10.73884349]
[1720623374442,1.11412903,3110.5,3109.4,3.21603]
[1720623374647,3.0,3110.6,3109.4,3.21603]
[1720623374861,2.2808,3110.7,3109.6,3.21584]
[1720623375073,2.2808,3110.7,3109.5,0.321603]
[1720623375270,1.11402347,3110.6,3109.2,10.68621]
[1720623375586,2.2768,3110.4,3109.2,7.52265349]
[1720623375744,1.11402347,3110.3,3109.2,7.52265349]
[1720623376056,4.11402347,3110.3,3109.2,7.52265349]
[1720623376380,1.11402347,3110.2,3109.2,7.52265349]
[1720623376587,3.0,3110.3,3109.2,7.52265349]
[1720623376758,1.11422192,3110.2,3109.2,7.52265349]
[1720623376942,1.11422192,3110.1,3109.2,7.52265349]
[1720623377142,1.11422192,3110.0,3109.2,7.52265349]
[1720623377376,1.11422192,3110.2,3109.2,7.52265349]
[1720623377553,1.11422192,3110.1,3109.2,7.52265349]
[1720623377762,2.2706,3110.0,3109.2,7.52265349]
[1720623377967,1.11422192,3109.9,3109.2,7.52265349]
[1720623378564,2.2706,3110.0,3109.2,7.52265349]
[1720623378787,1.11421252,3109.9,3109.2,7.52265349]
[1720623378988,1.11421252,3109.8,3109.2,7.52265349]
[1720623379185,1.11421252,3109.7,3109.2,0.05265349]
[1720623379389,1.11421252,3109.6,3108.9,7.47]
[1720623379590,2.2706,3110.0,3109.2,0.05265349]
[1720623379591,1.11421252,3109.5,3109.2,0.05265349]
[1720623379757,1.11421252,3109.4,3108.9,11.755192]
[1720623379958,1.11421252,3109.9,3109.2,0.05265349]
[1720623380160,2.2706,3110.0,3109.0,3.21645]
[1720623380364,1.11419593,3109.9,3109.2,0.05265349]
[1720623380665,2.2706,3110.0,3109.2,0.05265349]
[1720623380666,1.11419593,3109.8,3109.2,0.05265349]
[1720623380897,1.11419593,3109.7,3109.2,0.32691035]
[1720623381103,1.11419593,3109.9,3109.2,0.37956384]
[1720623381411,1.11419593,3109.8,3109.2,0.37956384]
[1720623381614,1.11419593,3109.7,3109.2,0.37956384]
[1720623381814,1.11419593,3109.6,3109.2,0.37956384]
[1720623382004,1.11419593,3109.5,3109.2,0.37956384]
[1720623382206,1.11419593,3109.4,3109.2,3.59580384]
[1720623382502,5.4881,3110.4,3109.3,3.58216269]
[1720623382707,1.11411191,3110.3,3109.3,3.58216269]
[1720623382906,1.11411191,3110.2,3109.3,3.58216269]
[1720623383212,1.11411191,3110.1,3109.3,3.58216269]
[1720623383413,3.21535,3110.1,3109.3,3.58216269]
[1720623383585,3.0,3110.3,3108.9,10.68648]
[1720623383586,3.21584,3109.7,3108.9,10.68648]
[1720623383786,1.11414447,3109.6,3109.0,3.21644]
[1720623384114,1.11414447,3109.5,3109.0,3.26939457]
[1720623384320,1.11414447,3109.5,3109.0,0.05295457]
[1720623384667,4.33010447,3109.5,3109.0,0.05295457]
[1720623384889,1.11414447,3109.4,3109.0,0.05295457]
[1720623385295,4.33020447,3109.4,3109.0,0.05295457]
[1720623385492,1.11414447,3109.3,3108.7,3.21673]
[1720623385703,1.11414447,3109.3,3108.7,5.801403]
[1720623386005,3.21635,3109.2,3108.8,0.05309504]
[1720623386300,1.11414447,3109.1,3108.6,7.47]
[1720623386533,1.11414447,3109.1,3108.7,0.05316529]
[1720623386670,1.11414447,3109.1,3108.5,6.2169]
[1720623386873,3.21637,3109.1,3108.6,0.05323553]
[1720623387091,1.11434181,3109.0,3108.6,0.05323553]
[1720623387298,3.21637,3109.1,3108.6,0.05323553]
[1720623387299,1.11438753,3108.9,3108.6,0.05323553]
[1720623387496,3.21637,3109.1,3108.6,0.05323553]
[1720623387703,1.11439616,3109.0,3108.6,0.05323553]
[1720623387890,1.11439616,3108.9,3108.6,0.90648908]
[1720623388087,6.43223,3109.4,3108.6,4.12334908]
[1720623388383,3.21626,3109.2,3108.6,0.90648908]
[1720623388704,1.11430599,3109.1,3108.6,0.90648908]
[1720623389479,1.11430599,3109.1,3108.6,4.12335908]
[1720623389811,1.11430599,3109.1,3108.7,1.03402791]
[1720623390313,3.21617,3109.3,3108.8,0.05309504]
[1720623390499,1.1143228,3109.2,3108.7,4.25076791]
[1720623390700,1.1143228,3109.1,3108.9,0.05302481]
[1720623390884,1.1143228,3109.1,3108.6,0.85325355]
[1720623390885,6.43262,3109.2,3108.6,4.07012355]
[1720623391087,6.43262,3109.2,3108.7,0.05316529]
[1720623391295,1.11433335,3109.1,3108.7,0.05316529]
[1720623391502,3.21628,3109.2,3108.7,0.05316529]
[1720623391706,1.11432429,3109.1,3108.7,0.05316529]
[1720623392014,3.21591,3109.6,3108.8,3.21659]
[1720623392315,2.3909,3110.1,3108.8,3.21659]
[1720623392316,6.43221,3109.4,3108.9,0.05302481]
[1720623392483,3.21635,3109.2,3108.9,0.05302481]
[1720623392678,4.33068421,3109.1,3108.5,3.0]
[1720623392890,1.11431421,3109.0,3108.6,0.05323553]
[1720623393615,3.21637,3109.1,3108.6,0.05323553]
[1720623393781,1.1143835,3109.0,3108.6,0.05323553]
[1720623393987,1.11440238,3108.9,3108.6,0.05323553]
[1720623394188,3.21637,3109.1,3108.6,0.05323553]
[1720623394383,2.4967,3109.4,3108.3,7.47]
[1720623394384,3.21665,3108.9,3108.3,7.47]
[1720623394584,4.33118303,3108.8,3108.7,0.04750986]
[1720623394915,3.21722,3108.3,3108.0,7.47]
[1720623395115,3.21722,3108.3,3106.9,19.84]
[1720623395116,3.21752,3108.0,3107.5,7.47]
[1720623395319,6.43509,3108.0,3107.5,7.47]
[1720623395489,1.11478514,3107.9,3107.5,7.47]
[1720623395689,6.43509,3108.0,3107.5,7.47]
[1720623395928,1.11479892,3107.9,3107.5,7.47]
[1720623396123,3.21752,3108.0,3107.5,7.47]
[1720623396333,1.11479797,3107.9,3107.5,7.47]
[1720623396627,3.21741,3108.1,3107.5,7.47]
[1720623397426,6.43411,3108.5,3107.7,3.21776]
[1720623397602,5.06119831,3108.4,3107.7,3.21776]
[1720623397800,5.06131831,3108.3,3107.7,3.21776]
[1720623398012,1.11469649,3108.2,3107.7,3.21776]
[1720623398616,3.21704,3108.5,3107.7,3.21776]
[1720623398789,5.06118145,3108.4,3107.7,3.21776]
[1720623398992,5.06123145,3108.3,3107.7,3.21776]
[1720623399195,1.11469693,3108.2,3107.7,3.21776]
[1720623399535,3.21719,3108.3,3107.7,3.21776]
[1720623400227,1.11470153,3108.2,3107.7,3.21776]
[1720623400544,3.21719,3108.3,3107.7,3.21776]
[1720623400689,1.11470185,3108.2,3107.7,3.21776]
[1720623400889,6.43445,3108.3,3107.7,3.21776]
[1720623401086,1.11474469,3108.2,3107.7,3.21776]
[1720623401321,1.11474469,3108.2,3107.5,8.860611]
[1720623401322,1.11477584,3108.1,3107.5,8.860611]
[1720623401522,3.2173,3108.2,3107.6,3.21791]
[1720623401823,1.11476436,3108.1,3107.5,7.47]
[1720623402123,3.21742,3108.1,3107.5,7.47]
[1720623402560,1.11477603,3108.0,3107.5,7.47]
[1720623402709,3.21751,3108.0,3107.5,7.47]
[1720623406539,3.21751,3108.0,3107.4,3.21802]
[1720623406711,6.43507,3108.0,3107.4,6.06072]
[1720623406910,3.21751,3108.0,3107.4,6.06072]
[1720623407110,3.21736,3108.2,3107.4,9.27878]
[1720623407311,1.11479433,3108.1,3107.4,9.27878]
[1720623407551,4.33230433,3108.0,3107.5,0.927878]
[1720623407748,3.21736,3108.2,3107.5,4.145878]
[1720623408023,4.33225294,3108.1,3107.5,4.145878]
[1720623408249,1.11479294,3108.0,3107.6,3.26312829]
[1720623408407,3.21722,3108.3,3107.6,7.50613092]
[1720623408608,1.11470334,3108.2,3107.6,7.50613092]
[1720623408847,3.21722,3108.3,3107.6,7.50613092]
[1720623409010,4.33201078,3108.2,3107.6,4.28828092]
[1720623409211,3.21757,3108.0,3107.6,0.04527829]
[1720623409435,3.21757,3108.0,3107.2,25.20895]
[1720623409636,3.21757,3108.0,3107.7,0.04519158]
[1720623409952,4.332414,3107.9,3107.8,0.04513535]
[1720623410109,4.332414,3107.9,3107.3,3.21822]
[1720623410440,4.54291416,3108.5,3107.2,9.8307]
[1720623410441,2.2948,3108.1,3107.4,0.04536029]
[1720623410653,1.11491778,3108.0,3107.4,0.04536029]
[1720623410860,1.11491778,3108.0,3107.2,7.47]
[1720623411014,1.11491778,3108.0,3107.5,0.0453176]
[1720623411213,1.11491778,3108.0,3107.2,7.47]
[1720623411454,1.11491778,3108.0,3107.6,0.04526136]
[1720623411658,1.11491778,3108.0,3107.2,7.47]
[1720623411864,1.11491778,3108.0,3107.7,0.04121873]
[1720623412053,1.11491778,3108.0,3107.2,7.47]
[1720623412526,1.11491778,3108.0,3107.3,0.04556556]
[1720623413836,1.11492032,3107.9,3107.3,0.04556556]
[1720623414038,1.11492032,3107.8,3107.3,0.04556556]
[1720623414245,1.11492032,3107.7,3107.3,0.04556556]
[1720623414548,1.11492032,3107.6,3107.5,3.21802]
[1720623414752,4.33943594,3108.4,3107.5,3.21802]
[1720623414965,1.84561644,3108.3,3107.5,3.2635476]
[1720623415124,1.84561644,3108.2,3107.5,3.2635476]
[1720623415322,1.11481085,3108.1,3107.5,3.2635476]
[1720623415528,1.11481085,3108.0,3107.6,0.56642476]
[1720623415756,1.11481085,3107.9,3107.6,0.61185886]
[1720623415910,1.11481085,3107.8,3107.6,0.61185886]
[1720623416115,1.33943594,3108.4,3107.6,0.61185886]
[1720623416313,1.11479232,3108.3,3107.7,3.2178]
[1720623416640,1.11479232,3108.2,3107.8,0.42825365]
[1720623416959,1.11479232,3108.1,3107.8,0.42825365]
[1720623417163,3.0,3108.5,3107.8,0.42825365]
[1720623417325,1.84579183,3108.4,3107.8,0.04528776]
[1720623417526,1.11472319,3108.3,3107.8,0.04528776]
[1720623417774,1.11472319,3108.4,3107.7,3.2178]
[1720623418075,1.11472319,3108.3,3107.9,0.0452112]
[1720623418232,1.11472319,3108.2,3107.8,0.04526404]
[1720623418432,1.11472319,3108.1,3108.0,0.04515159]
[1720623418674,1.11472319,3108.1,3107.9,0.04520782]
[1720623418871,3.0,3108.5,3108.0,0.04515159]
[1720623419049,1.84581109,3108.4,3108.0,0.04515159]
[1720623419245,1.1147148,3108.3,3107.7,3.2178]
[1720623419451,1.1147148,3108.2,3108.1,0.04509537]
[1720623419679,1.1147148,3108.2,3107.7,3.2178]
[1720623419839,4.33943594,3108.5,3108.1,0.04509537]
[1720623420034,1.8463856,3108.4,3107.6,3.21791]
[1720623420239,1.8463856,3108.3,3108.2,0.04503916]
[1720623420467,1.8463856,3108.3,3107.6,3.21791]
[1720623420667,1.8459601,3108.2,3107.6,3.21791]
[1720623420871,1.11474777,3108.1,3107.7,0.04528641]
[1720623421040,1.11474777,3108.3,3107.7,0.04528641]
[1720623421235,0.73112967,3108.2,3107.7,0.04528641]
[1720623421443,1.11474777,3108.1,3107.7,0.04528641]
[1720623421840,1.11474777,3108.3,3107.7,0.04528641]
[1720623422074,0.73105884,3108.2,3107.7,0.04528641]
[1720623422383,1.11474777,3108.1,3107.7,0.04528641]
[1720623422548,0.73105884,3108.0,3107.4,2.4007]
[1720623422873,1.11474777,3107.9,3107.8,0.0452505]
[1720623423172,1.84580661,3107.9,3107.8,0.0452505]
[1720623423372,1.84580661,3107.9,3107.4,2.4007]
[1720623423538,1.33943594,3108.2,3107.8,0.0452505]
[1720623423735,3.0,3108.5,3107.8,0.0452505]
[1720623423736,1.11482964,3108.1,3107.8,0.0452505]
[1720623423941,2.3517,3108.6,3107.9,8.8919]
[1720623423942,1.11473175,3108.0,3107.9,8.8919]
[1720623424186,1.11473175,3108.0,3107.9,8.93711798]